bitfinex/quotes_ETHUSD_20250715
["timestamp","ask_amount","ask_price","bid_price","bid_amount"]
[1752593142476,0.001,2992.7,2992.5,3.34164616]
[1752593142795,0.001,2992.7,2992.6,3.34157588]
[1752593143368,0.001,2992.7,2992.5,3.34168607]
[1752593143980,0.001,2992.7,2992.6,3.34157588]
[1752593144176,0.001,2992.7,2992.6,3.89157588]
[1752593144382,0.001,2992.7,2992.6,4.67617588]
[1752593144682,0.001,2992.7,2992.6,4.70959163]
[1752593146618,0.04,2992.9,2992.8,3.34135257]
[1752593146778,0.04,2992.9,2992.8,8.73376609]
[1752593147107,0.04,2992.9,2992.8,8.70035257]
[1752593147423,0.04,2992.9,2992.8,10.9845938]
[1752593147614,0.04,2992.9,2992.8,3.50775257]
[1752593147907,0.04,2992.9,2992.8,0.19981352]
[1752593148109,3.38124093,2992.9,2992.1,3.34208242]
[1752593148311,3.34163951,2992.6,2991.8,0.7933]
[1752593148510,13.37482927,2992.7,2992.1,3.34210929]
[1752593148686,13.34151354,2992.7,2992.2,3.3420185]
[1752593148891,0.3883,2992.8,2992.3,3.3419002]
[1752593149215,0.3883,2992.8,2992.2,0.03342022]
[1752593149598,0.3883,2992.8,2992.3,3.34184177]
[1752593149938,0.3883,2992.8,2992.4,3.34177651]
[1752593150288,0.3883,2992.8,2992.3,3.34188116]
[1752593150481,0.3883,2992.8,2992.4,3.34179902]
[1752593150883,0.3883,2992.8,2992.3,3.34186732]
[1752593151221,3.72966467,2992.8,2992.2,3.37538755]
[1752593151408,3.34160706,2992.6,2992.2,0.03342022]
[1752593151608,3.37483759,2992.7,2992.2,3.34201099]
[1752593152219,3.34159902,2992.6,2992.1,3.34207908]
[1752593152518,5.358,2992.7,2992.1,3.34207908]
[1752593152818,3.37491785,2992.6,2992.1,3.34207908]
[1752593153019,4.62117788,2992.6,2992.0,3.34219666]
[1752593153216,4.62117788,2992.6,2992.1,3.34211125]
[1752593153515,1.27957576,2992.6,2991.8,3.34237706]
[1752593153680,3.34168755,2992.5,2991.8,3.34237706]
[1752593153891,3.34168755,2992.5,2991.7,5.358]
[1752593153892,0.03331573,2992.6,2991.5,4.7103671]
[1752593154086,3.34176129,2992.5,2991.9,3.34229774]
[1752593154427,30.0,2992.4,2991.4,5.358]
[1752593154720,3.34209081,2992.2,2991.6,3.34258603]
[1752593154948,10.3883,2992.0,2990.9,0.7721]
[1752593155124,3.34258114,2991.7,2991.0,3.34329774]
[1752593155427,5.39131573,2991.6,2990.9,3.34336395]
[1752593155630,3.34291417,2991.5,2990.9,3.34342815]
[1752593155922,0.03331573,2991.4,2991.1,3.34324241]
[1752593156128,0.3883,2991.8,2990.7,0.03343698]
[1752593156129,10.0,2991.7,2990.7,0.03343698]
[1752593156317,0.3883,2991.8,2991.3,3.34302811]
[1752593156497,5.358,2991.6,2991.4,0.03342916]
[1752593156686,5.358,2991.6,2991.3,3.34302811]
[1752593156890,5.358,2991.6,2991.2,3.34309276]
[1752593157091,0.3883,2991.8,2991.3,0.03343028]
[1752593157326,0.3883,2992.1,2991.1,0.55]
[1752593157491,5.7473,2992.1,2991.7,3.34252408]
[1752593157697,5.7473,2992.1,2991.0,4.16249408]
[1752593158031,5.7473,2992.1,2991.8,3.34242337]
[1752593158203,5.359,2992.0,2991.6,0.1664]
[1752593158403,30.0,2991.9,2991.2,3.34307613]
[1752593158592,0.3883,2991.7,2991.2,0.1664]
[1752593158801,33.54246994,2991.6,2991.0,3.5096767]
[1752593159021,5.359,2991.5,2991.0,3.5096767]
[1752593159294,3.37633944,2991.4,2991.0,0.1664]
[1752593159649,3.37633944,2991.4,2990.7,3.34362884]
[1752593159650,0.3883,2991.2,2990.7,3.34361875]
[1752593159833,0.58801573,2991.2,2990.8,3.34354014]
[1752593159998,3.93126192,2991.2,2990.7,0.1664]
[1752593160531,3.34353332,2990.9,2990.5,0.002]
[1752593160752,3.7321106,2990.6,2990.5,0.002]
[1752593160951,33.7321106,2990.6,2990.5,0.002]
[1752593161097,0.3883,2990.6,2990.5,0.002]
[1752593161411,5.359,2991.0,2990.8,3.34353266]
[1752593161616,0.1664,2991.0,2990.9,3.3434752]
[1752593161796,5.359,2991.2,2991.1,3.34325164]
[1752593162194,5.359,2991.2,2991.0,3.34329079]
[1752593162398,5.359,2991.2,2991.0,3.34336342]
[1752593162632,5.359,2991.2,2990.9,0.1664]
[1752593162839,10.19971573,2991.1,2990.6,0.1664]
[1752593163063,10.3883,2990.7,2990.5,1e-08]
[1752593163197,10.03331573,2990.6,2990.5,1e-08]
[1752593163402,15.359,2990.6,2990.5,1e-08]
[1752593163719,5.7473,2990.7,2990.5,3.34392243]
[1752593164044,10.0,2991.0,2990.9,3.3434752]
[1752593164045,0.3883,2991.0,2990.9,3.3434752]
[1752593164211,0.42161573,2991.4,2990.9,3.3434752]
[1752593164549,10.0,2991.2,2991.1,3.34319457]
[1752593164836,0.3883,2991.4,2991.3,3.34302811]
[1752593164997,5.359,2991.4,2991.3,3.34302811]
[1752593165201,10.0,2991.7,2991.0,0.03343363]
[1752593165520,5.359,2991.6,2991.4,3.34285463]
[1752593165723,5.359,2991.6,2991.3,3.34300386]
[1752593165922,5.359,2991.6,2991.0,0.3376988]
[1752593166111,5.359,2991.6,2991.1,0.03343251]
[1752593166316,5.359,2991.6,2991.2,3.34313987]
[1752593166526,10.3883,2991.8,2991.1,0.03343251]
[1752593166848,0.3883,2992.8,2991.5,0.8132]
[1752593167028,0.03331573,2992.7,2992.2,3.34194594]
[1752593167215,10.0,2992.5,2992.0,3.34217148]
[1752593167418,10.0,2992.5,2991.9,3.34235327]
[1752593167617,10.0,2992.5,2991.8,0.03342469]
[1752593168018,0.03331573,2992.4,2992.1,3.34205254]
[1752593168612,10.0,2992.5,2992.3,3.34185272]
[1752593168817,0.3883,2992.8,2992.4,3.34179922]
[1752593169036,10.0,2992.6,2992.2,3.34200013]
[1752593169341,10.0,2992.7,2992.4,3.34178699]
[1752593169505,10.0,2992.7,2992.0,0.03342245]
[1752593169506,10.0,2992.5,2992.2,3.34198457]
[1752593169707,10.0,2992.5,2992.3,3.34189757]
[1752593170041,10.0,2992.5,2992.1,3.34213428]
[1752593170439,30.0,2992.4,2991.5,0.8132]
[1752593170614,3.34220041,2992.1,2991.0,5.359]
[1752593170817,35.72653577,2992.0,2991.4,3.34283499]
[1752593171145,3.34270589,2991.6,2990.5,1.09699225]
[1752593171347,5.39231573,2991.5,2991.0,3.34326038]
[1752593171519,5.39231573,2991.5,2991.1,3.34323206]
[1752593171852,3.34321818,2991.2,2990.5,0.76260001]
[1752593172010,3.34340675,2991.0,2990.5,1e-08]
[1752593172210,0.03331573,2991.0,2990.8,3.34358395]
[1752593172455,5.359,2990.9,2990.8,3.34358395]
[1752593172646,0.3883,2991.3,2990.5,1e-08]
[1752593172819,5.359,2991.2,2991.0,3.34329527]
[1752593173023,5.359,2991.2,2990.9,3.34343099]
[1752593173330,0.5547,2991.3,2990.7,0.1664]
[1752593173529,5.359,2991.2,2990.8,0.03343587]
[1752593173751,5.95037,2991.2,2990.9,3.3434099]
[1752593173919,5.95037,2991.2,2990.8,3.34349667]
[1752593174121,5.359,2991.1,2990.8,3.34349667]
[1752593174347,5.359,2991.1,2990.9,3.34345397]
[1752593174565,5.359,2991.1,2991.0,3.34336342]
[1752593174717,0.5547,2991.3,2991.0,3.34336342]
[1752593175061,5.359,2991.2,2991.0,3.50970482]
[1752593175246,5.36,2991.2,2991.1,3.34325164]
[1752593175455,0.1664,2991.6,2991.3,3.34300249]
[1752593175748,0.1664,2991.6,2991.0,0.1664]
[1752593175920,5.36,2991.5,2991.0,0.19983363]
[1752593176119,5.36,2991.5,2991.1,3.34315598]
[1752593176537,3.50911723,2991.6,2991.1,3.34315598]
[1752593176763,5.36,2991.5,2991.1,0.03343251]
[1752593176960,5.36,2991.5,2991.4,3.34291636]
[1752593177167,5.36,2991.5,2991.2,3.34313987]
[1752593177327,5.36,2991.5,2991.1,0.03343251]
[1752593177525,5.36,2991.5,2991.2,3.34313987]
[1752593177725,5.36,2991.5,2991.3,3.34302811]
[1752593177925,5.36,2991.4,2991.3,3.34302811]
[1752593178643,5.36,2991.4,2991.0,0.1664]
[1752593178855,5.36,2991.4,2991.2,3.34304176]
[1752593179056,5.36,2991.4,2991.1,3.34316092]
[1752593179652,5.36,2991.4,2991.3,3.34302811]
[1752593180337,5.36,2991.4,2991.1,0.03343251]
[1752593180531,5.36,2991.4,2991.1,3.37660382]
[1752593180735,3.34313987,2991.2,2991.1,0.03343251]
[1752593180924,3.34313987,2991.2,2990.9,0.002]
[1752593180925,10.03331573,2991.1,2990.9,0.002]
[1752593181121,5.359,2991.0,2990.9,0.002]
[1752593181344,0.03331573,2991.2,2990.9,0.002]
[1752593181540,0.3883,2991.3,2990.9,0.002]
[1752593181780,5.359,2991.2,2990.9,0.002]
[1752593181947,5.359,2991.1,2990.9,0.002]
[1752593182279,5.359,2991.1,2990.9,3.34546849]
[1752593182647,5.359,2991.3,2991.0,3.34325405]
[1752593182865,5.359,2991.3,2990.9,0.8131]
[1752593183072,0.42161573,2991.6,2990.9,0.8131]
[1752593183260,5.359,2991.3,2991.0,0.03343363]
[1752593183872,5.359,2991.3,2991.1,3.34318011]
[1752593184260,5.359,2991.3,2991.0,3.3767224]
[1752593184566,5.359,2991.3,2991.0,3.37674387]
[1752593184769,5.359,2991.4,2991.0,0.03343363]
[1752593184992,0.5359,2991.3,2990.9,0.002]
[1752593185168,3.34334014,2991.1,2990.9,0.002]
[1752593185488,3.34336342,2991.0,2990.9,0.002]
[1752593185786,8.70236342,2991.0,2990.9,0.002]
[1752593186171,39.09066342,2991.0,2990.9,0.002]
[1752593186485,50.18439906,2991.0,2990.9,0.002]
[1752593186783,20.18439906,2991.0,2990.9,0.002]
[1752593187082,50.18439906,2991.0,2990.9,0.002]
[1752593187652,41.48203564,2991.0,2990.9,0.002]
[1752593187856,10.3883,2991.0,2990.9,0.002]
[1752593188164,15.359,2991.0,2990.9,0.002]
[1752593189764,3.34286796,2991.5,2991.0,3.34336342]
[1752593189957,10.0,2991.3,2990.9,3.3454292]
[1752593190276,5.359,2991.2,2991.0,3.34329401]
[1752593190683,5.359,2991.2,2990.9,3.34542233]
[1752593191269,3.54275198,2991.3,2990.9,0.002]
[1752593191572,3.34336342,2991.0,2990.9,0.002]
[1752593191883,13.34336342,2991.0,2990.9,0.002]
[1752593192090,19.09066342,2991.0,2990.9,0.002]
[1752593193393,5.359,2991.0,2990.9,3.3454752]
[1752593193764,5.359,2991.0,2990.9,0.002]
[1752593194767,5.359,2991.0,2990.9,3.3454752]
[1752593195398,5.359,2991.0,2990.9,3.34545216]
[1752593195901,0.1664,2991.3,2990.9,0.002]
[1752593196076,5.359,2991.2,2991.1,3.34317321]
[1752593196279,0.1664,2991.3,2990.9,0.20183475]
[1752593196280,0.1664,2991.3,2990.9,0.1684]
[1752593196478,5.359,2991.4,2991.2,3.34305163]
[1752593196790,0.3883,2992.1,2991.4,3.34291636]
[1752593196791,0.1664,2991.5,2991.4,3.34291636]
[1752593196994,0.1664,2992.1,2991.5,0.55]
[1752593197288,5.359,2992.2,2991.8,0.1664]
[1752593197492,5.359,2992.2,2991.8,3.50886785]
[1752593197669,5.359,2992.2,2991.8,3.54229254]
[1752593197870,5.39231573,2992.2,2991.8,3.54229254]
[1752593198483,8.73437059,2992.2,2991.8,0.1664]
[1752593198767,6.5832622,2992.2,2991.8,0.1664]
[1752593198968,9.95864296,2992.2,2991.8,0.1664]
[1752593199182,6.5832622,2992.2,2991.9,3.34233853]
[1752593199380,6.5832622,2992.2,2991.8,0.1664]
[1752593199582,5.359,2992.2,2991.8,0.1664]
[1752593200050,10.1664,2992.3,2991.9,3.34230439]
[1752593200303,0.3883,2992.5,2992.0,0.03342245]
[1752593200609,5.358,2992.4,2992.1,3.34205533]
[1752593200816,5.358,2992.4,2992.0,0.19982245]
[1752593201098,0.1664,2992.0,2991.7,3.3425141]
[1752593201298,0.1664,2992.0,2991.5,3.50917528]
[1752593201474,0.1664,2992.0,2991.6,3.34263111]
[1752593201871,0.1664,2992.0,2991.5,0.19982804]
[1752593202064,0.1664,2992.0,2991.5,3.54261551]
[1752593202268,0.1664,2992.1,2991.6,0.7164]
[1752593202464,5.357,2992.2,2992.0,3.34223906]
[1752593202871,5.357,2992.2,2991.9,3.34231451]
[1752593203073,5.357,2992.2,2991.8,3.5088306]
[1752593203268,5.357,2992.2,2991.3,1.3313]
[1752593203269,0.3883,2991.9,2991.0,3.34329393]
[1752593203604,3.50921221,2991.5,2990.9,0.9998]
[1752593203821,5.39031573,2991.4,2990.9,1.03323475]
[1752593204010,5.39031573,2991.4,2990.9,4.34321958]
[1752593204208,3.34336342,2991.0,2990.9,0.002]
[1752593204412,19.20109976,2991.0,2990.9,0.002]
[1752593204617,49.58939976,2991.0,2990.9,0.002]
[1752593206194,19.58939976,2991.0,2990.9,0.002]
[1752593206386,10.88903634,2991.0,2990.9,0.002]
[1752593206889,15.5234,2991.0,2990.9,0.002]
[1752593207090,0.3883,2991.4,2990.9,3.3454752]
[1752593207323,0.1664,2991.3,2991.0,3.34336342]
[1752593207543,5.5234,2991.3,2990.9,0.002]
[1752593207715,5.357,2991.2,2990.9,0.002]
[1752593207924,5.357,2991.2,2991.0,3.34334974]
[1752593208087,5.357,2991.2,2990.9,3.34543924]
[1752593208292,5.357,2991.2,2991.0,3.34333473]
[1752593208520,0.1664,2991.3,2990.9,0.002]
[1752593208836,0.1664,2991.3,2990.9,3.34545083]
[1752593209022,8.029,2991.7,2991.2,3.34308466]
[1752593209329,8.1954,2991.7,2991.2,0.1664]
[1752593209516,5.357,2991.6,2991.2,0.1664]
[1752593209725,5.357,2991.6,2991.4,3.34285049]
[1752593210049,5.357,2991.6,2991.5,3.34280461]
[1752593210214,0.3883,2992.1,2991.6,3.34269287]
[1752593210527,0.37304657,2992.0,2991.7,3.34255102]
[1752593210727,0.1664,2992.1,2991.8,3.3424354]
[1752593210904,0.1664,2992.1,2991.6,3.50909178]
[1752593210905,0.1664,2992.1,2991.9,3.34227958]
[1752593211100,5.356,2992.2,2992.1,3.34213428]
[1752593211309,0.1664,2992.4,2992.1,3.34213428]
[1752593211708,0.001,2992.7,2992.5,3.34168148]
[1752593211898,5.357,2992.7,2992.5,3.34159951]
[1752593212103,5.357,2992.7,2992.6,3.34157588]
[1752593212309,5.357,2992.7,2992.6,3.50797588]
[1752593213043,5.357,2992.7,2992.6,0.1664]
[1752593213409,5.357,2992.7,2992.6,3.50797588]
[1752593213707,5.357,2992.7,2992.6,0.1664]
[1752593214144,0.001,2992.7,2992.6,0.1664]
[1752593214347,0.001,2992.7,2992.6,0.19981575]
[1752593215612,0.001,2992.7,2992.6,3.50797588]
[1752593215920,0.001,2992.7,2992.6,5.05635775]
[1752593216245,0.001,2992.7,2992.6,4.37139163]
[1752593217940,0.001,2992.7,2992.6,0.19981575]
[1752593218146,0.001,2992.7,2992.6,0.1664]
[1752593219038,0.001,2992.7,2992.6,0.19981575]
[1752593219731,0.001,2992.7,2992.6,3.54139163]
[1752593220138,0.001,2992.7,2992.6,0.19981575]
[1752593220345,0.001,2992.7,2992.6,3.54139163]
[1752593221234,0.001,2992.7,2992.6,0.19981575]
[1752593221679,0.001,2992.7,2992.6,3.54139163]
[1752593222477,0.001,2992.7,2992.6,0.1664]
[1752593223351,0.001,2992.7,2992.6,3.54139163]
[1752593223882,0.001,2992.7,2992.6,0.19981575]
[1752593224584,0.001,2992.7,2992.6,0.1664]
[1752593224972,5.7413,2992.7,2991.8,0.8238]
[1752593225276,0.74386157,2992.6,2992.1,0.1664]
[1752593225584,3.34169309,2992.5,2992.1,0.1664]
[1752593225780,0.1664,2992.6,2992.1,0.1664]
[1752593226079,0.001,2992.7,2992.6,3.34157588]
[1752593226283,0.001,2992.7,2992.5,4.16545826]
[1752593226488,0.001,2992.7,2992.5,0.1664]
[1752593226792,0.001,2992.7,2992.3,0.1664]
[1752593226993,0.001,2992.7,2992.4,0.03341799]
[1752593227193,0.001,2992.7,2992.5,3.50798594]
[1752593228190,0.001,2992.7,2992.5,0.1664]
[1752593229305,3.34175132,2992.5,2991.9,4.17237477]
[1752593229474,3.34182553,2992.4,2991.8,3.37588824]
[1752593229795,5.351,2992.6,2992.1,3.34205069]
[1752593229996,5.351,2992.6,2992.0,0.03342245]
[1752593230196,0.001,2992.7,2992.1,3.34213428]
[1752593230397,0.001,2992.7,2991.8,0.41958882]
[1752593230398,0.001,2992.7,2992.4,3.34179118]
[1752593230705,0.001,2992.7,2992.4,3.34173184]
[1752593230900,0.001,2992.7,2992.4,0.78712326]
[1752593231212,0.001,2992.7,2992.5,3.89167994]
[1752593231874,0.001,2992.7,2992.2,0.8199]
[1752593231875,0.001,2992.7,2992.6,3.34157588]
[1752593232086,0.001,2992.7,2992.2,0.8199]
[1752593232266,0.001,2992.7,2992.4,3.3416961]
[1752593232891,0.001,2992.7,2992.5,3.37510228]
[1752593233199,0.001,2992.7,2992.6,3.34157588]
[1752593233495,0.001,2992.7,2992.5,3.34165286]
[1752593233802,0.001,2992.7,2992.6,3.34157588]
[1752593234372,0.001,2992.7,2992.5,3.37508773]
[1752593234571,0.001,2992.7,2992.6,3.34157588]
[1752593235604,0.001,2992.7,2992.6,4.56324369]
[1752593235900,0.001,2992.7,2992.6,5.31704369]
[1752593236098,0.001,2992.7,2992.6,5.35045944]
[1752593236304,0.04,2992.9,2992.8,3.89135257]
[1752593236618,0.04,2992.9,2992.8,10.02756609]
[1752593236800,0.04,2992.9,2992.8,12.39822196]
[1752593239092,0.04,2992.9,2992.8,7.04922196]
[1752593239295,0.04,2992.9,2992.8,12.56362196]
[1752593240515,0.001,2993.3,2993.2,4.69650605]
[1752593240681,0.001,2993.3,2993.2,10.07691511]
[1752593240876,0.001,2993.3,2993.2,1.89179265]
[1752593241234,0.001,2993.3,2992.7,3.34140273]
[1752593241442,3.34102658,2993.1,2992.8,0.1664]
[1752593241636,3.34102658,2993.1,2992.4,3.3417723]
[1752593241637,0.3883,2992.9,2992.4,3.3417723]
[1752593241792,0.3883,2992.9,2992.6,0.1684]
[1752593241988,0.001,2992.9,2992.6,3.50996915]
[1752593242227,0.001,2992.9,2992.7,0.03341464]
[1752593243519,0.001,2992.9,2992.8,3.34135257]
[1752593243817,0.001,2992.9,2992.8,0.7164]
[1752593243985,0.001,2992.9,2992.8,4.05775257]
[1752593244580,0.001,2992.9,2992.8,0.1664]
[1752593244826,0.001,2992.9,2992.6,0.1684]
[1752593245025,0.001,2992.9,2992.6,3.54329853]
[1752593245325,0.001,2992.9,2992.6,0.20181575]
[1752593245688,3.3423484,2992.9,2992.6,0.20181575]
[1752593245891,0.001,2992.9,2992.6,0.20181575]
[1752593246284,0.001,2992.9,2992.7,3.34142679]
[1752593246487,0.001,2992.9,2992.8,0.19981352]
[1752593246786,0.001,2992.9,2992.8,3.54116609]
[1752593247922,0.001,2992.9,2992.8,4.89226609]
[1752593252440,0.001,2992.9,2992.8,0.1664]
[1752593252993,0.001,2992.9,2992.6,0.002]
[1752593253245,0.001,2992.9,2992.6,0.1684]
[1752593253735,0.001,2992.9,2992.6,0.20181575]
[1752593254887,0.001,2992.9,2992.8,3.34135257]
[1752593255193,0.001,2992.9,2992.8,4.21298934]
[1752593255533,0.001,2992.9,2992.8,5.51538934]
[1752593259311,0.001,2993.3,2993.2,3.89090605]
[1752593259518,0.001,2993.3,2993.2,9.23290605]
[1752593259711,0.001,2993.3,2993.2,9.39930605]
[1752593260051,0.001,2993.3,2993.2,11.48353784]
[1752593260821,0.001,2993.3,2993.2,10.67333784]
[1752593264226,0.001,2993.3,2993.2,7.33243179]
[1752593264428,0.001,2993.3,2993.2,10.67333784]
[1752593267865,0.001,2993.3,2993.2,11.46043784]
[1752593268840,0.041,2993.9,2993.8,3.89023648]
[1752593269065,0.041,2993.9,2993.8,10.40636013]
[1752593269269,0.041,2993.9,2993.8,10.57276013]
[1752593270972,0.041,2993.9,2993.8,9.39563648]
[1752593271139,0.041,2993.9,2993.8,6.0554]
[1752593271344,0.041,2993.9,2993.8,9.39563648]
[1752593272142,0.041,2993.9,2993.8,5.5044]
[1752593272944,3.38112492,2993.9,2993.8,5.5044]
[1752593273475,0.041,2993.9,2993.6,0.03340459]
[1752593273653,0.041,2993.9,2993.6,5.53680459]
[1752593274363,0.041,2993.9,2993.8,3.89023648]
[1752593274670,0.041,2993.9,2993.8,8.84363648]
[1752593274971,0.041,2993.9,2993.8,5.5034]
[1752593276443,0.041,2993.9,2993.8,0.1664]
[1752593277288,3.38112492,2993.9,2993.6,5.336]
[1752593277445,3.38112492,2993.9,2993.6,5.5024]
[1752593279086,0.041,2993.9,2993.6,5.5024]
[1752593279298,0.041,2993.9,2993.6,0.1664]
[1752593279796,3.3811816,2993.9,2993.6,0.1664]
[1752593280683,0.041,2993.9,2993.6,0.1664]
[1752593280994,3.38114562,2993.9,2993.6,0.1664]
[1752593281188,0.041,2993.9,2993.6,0.1664]
[1752593281546,3.38118448,2993.9,2993.6,0.1664]
[1752593281849,3.38118188,2993.9,2993.6,0.1664]
[1752593282045,3.34034806,2993.7,2993.6,0.1664]
[1752593282246,4.01251133,2993.7,2993.6,0.1664]
[1752593282441,4.40081133,2993.7,2993.6,0.1664]
[1752593283160,0.3883,2993.7,2993.6,0.1664]
[1752593283358,0.041,2993.9,2993.6,0.1664]
[1752593284291,3.34024403,2993.8,2993.6,0.1664]
[1752593284452,3.34028922,2993.8,2993.6,0.1664]
[1752593285466,3.34034806,2993.7,2993.6,0.1664]
[1752593285780,3.34134806,2993.7,2993.6,0.1664]
[1752593285975,0.001,2993.7,2993.6,0.1664]
[1752593286902,3.34134806,2993.7,2993.6,0.1664]
[1752593287284,0.001,2993.7,2993.6,0.1664]
[1752593290875,3.34134806,2993.7,2993.6,0.1664]
[1752593291494,0.001,2993.7,2993.6,0.1664]
[1752593293390,3.34134806,2993.7,2993.6,0.1664]
[1752593293709,0.001,2993.7,2993.6,0.1664]
[1752593293882,0.001,2993.7,2993.2,0.1664]
[1752593293883,3.34062827,2993.5,2993.2,0.1664]
[1752593294104,5.7183,2993.5,2993.2,0.1664]
[1752593294304,3.37399856,2993.4,2992.9,0.002]
[1752593294532,10.13473973,2993.2,2992.9,0.1684]
[1752593294691,3.3411293,2993.0,2992.9,0.002]
[1752593295097,3.37444503,2993.0,2992.9,0.002]
[1752593295835,5.33,2993.0,2992.9,0.002]
[1752593296710,8.6711293,2993.0,2992.9,0.002]
[1752593297235,0.5547,2993.1,2992.9,0.002]
[1752593297432,8.6711293,2993.0,2992.9,0.002]
[1752593298141,48.6711293,2993.0,2992.9,0.002]
[1752593298298,49.0594293,2993.0,2992.9,0.002]
[1752593298898,19.0594293,2993.0,2992.9,0.002]
[1752593299192,13.7294293,2993.0,2992.9,0.002]
[1752593299399,19.0584293,2993.0,2992.9,0.002]
[1752593305040,19.0574293,2993.0,2992.9,0.002]
[1752593305222,3.34146422,2992.7,2992.6,0.002]
[1752593305422,59.22581968,2992.7,2992.6,0.002]
[1752593305622,59.19250395,2992.7,2992.6,0.002]
[1752593306752,49.05776422,2992.7,2992.6,0.002]
[1752593306920,19.05776422,2992.7,2992.6,0.002]
[1752593308051,19.05676422,2992.7,2992.6,0.002]
[1752593310453,15.7153,2992.7,2992.6,0.002]
[1752593310656,0.1664,2992.8,2992.6,0.002]
[1752593310836,5.327,2992.7,2992.6,3.34350712]
[1752593311234,3.34090746,2993.2,2992.6,3.34350712]
[1752593311235,0.3883,2993.4,2992.7,3.34146422]
[1752593311547,5.326,2993.2,2992.7,3.34139961]
[1752593311749,5.326,2993.2,2992.8,0.1664]
[1752593312055,0.001,2993.3,2992.8,0.83101352]
[1752593312260,0.001,2993.3,2993.0,0.1664]
[1752593312444,5.326,2993.2,2993.0,0.1664]
[1752593312631,5.326,2993.2,2993.0,3.50750073]
[1752593312962,5.326,2993.2,2993.0,0.1664]
[1752593313260,3.34134204,2992.9,2992.6,0.002]
[1752593313565,5.326,2992.8,2992.6,0.002]
[1752593313761,5.35931573,2992.8,2992.6,0.002]
[1752593314250,8.70069724,2992.8,2992.6,0.002]
[1752593314558,13.64260395,2992.7,2992.6,0.002]
[1752593314749,14.73635868,2992.7,2992.6,0.002]
[1752593315922,55.12465868,2992.7,2992.6,0.002]
[1752593316128,13.34157588,2992.6,2992.5,0.002]
[1752593316362,3.34246941,2991.8,2991.7,0.002]
[1752593316565,6.03131314,2991.8,2991.7,0.002]
[1752593317572,5.324,2991.8,2991.7,0.002]
[1752593319074,3.54204168,2992.0,2991.7,0.002]
[1752593319239,5.324,2991.9,2991.7,0.002]
[1752593319438,0.03331573,2991.8,2991.7,0.002]
[1752593319864,0.03331573,2991.9,2991.7,0.002]
[1752593320172,5.324,2991.8,2991.7,0.002]
[1752593320681,0.03331573,2991.9,2991.7,0.002]
[1752593320850,5.323,2991.8,2991.7,0.002]
[1752593321772,5.35631573,2991.8,2991.7,0.002]
[1752593322070,0.03331573,2991.8,2991.7,0.002]
[1752593322669,0.03331573,2991.9,2991.7,0.002]
[1752593322876,0.19971573,2992.0,2991.7,0.002]
[1752593323072,5.323,2991.9,2991.7,0.002]
[1752593323379,5.323,2991.8,2991.7,0.002]
[1752593324174,0.1664,2992.0,2991.7,0.002]
[1752593324361,5.322,2991.9,2991.7,0.002]
[1752593324563,5.322,2991.8,2991.7,0.7699]
[1752593325544,0.1664,2992.2,2991.7,0.7699]
[1752593325770,3.34140763,2993.7,2992.1,3.34213428]
[1752593325771,0.1664,2992.5,2992.1,3.34213428]
[1752593325957,0.1664,2992.7,2992.4,3.34179922]
[1752593326272,5.322,2992.6,2992.3,4.12255681]
[1752593326476,5.322,2992.5,2992.3,4.12255206]
[1752593326776,5.322,2992.4,2992.3,0.7807]
[1752593327867,5.321,2992.4,2992.3,0.7807]
[1752593328780,3.3419109,2992.3,2991.9,0.8318]
[1752593329086,5.35431573,2992.2,2991.9,0.1664]
[1752593329246,3.34216091,2992.1,2991.9,0.1664]
[1752593329447,3.34224598,2992.0,2991.9,0.1664]
[1752593329749,5.321,2992.2,2991.9,0.1664]
[1752593330155,3.37546873,2992.1,2991.9,0.1664]
[1752593330370,3.34224598,2992.0,2991.9,0.1664]
[1752593330679,3.34224598,2992.0,2991.7,0.002]
[1752593330680,3.34246941,2991.8,2991.7,0.002]
[1752593330843,8.69578514,2991.8,2991.7,0.002]
[1752593331044,8.66246941,2991.8,2991.7,0.002]
[1752593332960,9.05076941,2991.8,2991.7,0.002]
[1752593333164,9.91703662,2991.8,2991.7,0.002]
[1752593333593,19.91703662,2991.8,2991.7,0.002]
[1752593333751,49.91703662,2991.8,2991.7,0.002]
[1752593334488,49.91603662,2991.8,2991.7,0.002]
[1752593335257,19.91603662,2991.8,2991.7,0.002]
[1752593335457,49.91603662,2991.8,2991.7,0.002]
[1752593335657,44.59703662,2991.8,2991.7,0.002]
[1752593335857,49.91503662,2991.8,2991.7,0.002]
[1752593336094,19.91503662,2991.8,2991.7,0.002]
[1752593336588,5.318,2991.8,2991.7,0.002]
[1752593336769,8.66046941,2991.8,2991.7,0.002]
[1752593337690,18.66046941,2991.8,2991.7,0.002]
[1752593338289,49.04876941,2991.8,2991.7,0.002]
[1752593339561,43.73076941,2991.8,2991.7,0.002]
[1752593339760,49.04776941,2991.8,2991.7,0.002]
[1752593339961,43.73076941,2991.8,2991.7,0.002]
[1752593340182,10.0,2991.8,2991.7,0.002]
[1752593340382,15.317,2991.8,2991.7,0.002]
[1752593340717,0.1664,2991.9,2991.7,0.002]
[1752593340876,3.37538612,2992.2,2991.7,0.002]
[1752593341204,5.4834,2992.1,2991.7,0.002]
[1752593341501,5.4834,2992.1,2991.7,3.34458071]
[1752593341658,8.82556515,2992.1,2991.7,0.002]
[1752593341862,5.4834,2992.1,2991.7,3.34452586]
[1752593342294,5.4834,2992.1,2991.7,0.002]
[1752593342497,3.37558592,2992.0,2991.7,0.002]